Workbook

Sheet Sheet1
A1: COMMON NAME | B1: SCIENTIFIC NAME | C1: EEP | D1: SSSMZP risk cat. | E1: IUCN | F1: CITES | G1: Start totals | H1: SUBMITTED TOTALS | K1: Arrived | N1: Born | Q1: Neonatal death <30 hatch/birth | T1: Death | W1: Departed | Z1: CURRENT TOTALS | AC1: Current totals
H2: As of 01/01/2016 | Z2: As of | AA2: 2016-12-31
H3: M | I3: F | J3: Unk | K3: M | L3: F | M3: Unk | N3: M | O3: F | P3: Unk | Q3: M | R3: F | S3: Unk | T3: M | U3: F | V3: Unk | W3: M | X3: F | Y3: Unk | Z3: M | AA3: F | AB3: Unk
A4: INVERTEBRATES
A5: Giant African Millipede | B5: Archispirostreptus gigas | G5: 2 | H5: 0 | I5: 0 | J5: 2 | V5: 1 | Z5: =SUM(H5+K5+N5-Q5-T5-W5) -> 0 | AA5: =SUM(I5+L5+O5-R5-U5-X5) -> 0 | AB5: =SUM(J5+M5+P5-S5-V5-Y5) -> 1 | AC5: =SUM(Z5+AA5+AB5) -> 1
A6: Imperial Scorpion | B6: Pandinus imperator | G6: 2 | H6: 0 | I6: 0 | J6: 2 | Z6: =SUM(H6+K6+N6-Q6-T6-W6) -> 0 | AA6: =SUM(I6+L6+O6-R6-U6-X6) -> 0 | AB6: =SUM(J6+M6+P6-S6-V6-Y6) -> 2 | AC6: =SUM(Z6+AA6+AB6) -> 2
A7: Sun Beetle | B7: Pachnoda marginata aurantia | G7: 25 | H7: 0 | I7: 0 | J7: 25 | M7: 10 | V7: 5 | Z7: 0 | AA7: 0 | AB7: 30 | AC7: 30
A8: Chilian Rose Tarantula | B8: Grammostola rosea | G8: 0 | H8: 0 | I8: 0 | J8: 0 | L8: 1 | Z8: 0 | AA8: 1 | AB8: 0 | AC8: 1
A9: Goliath Bird Eater | B9: Theraphosa blondi | G9: 1 | H9: 1 | I9: 0 | J9: 0 | T9: 1 | Z9: 0 | AA9: 0 | AB9: 0 | AC9: 0
A10: TOTAL Invertebrate species: | G10: =COUNTIF(G5:G9,">0") -> 4 | AC10: =COUNTIF(AC5:AC9,">0") -> 4
A11: TOTAL Invertebrate: | G11: =SUM(H11:J11) -> 30 | H11: =SUM(H5:H9) -> 1 | I11: 0 | J11: 29 | K11: 0 | L11: 1 | M11: 10 | N11: =SUM(N5:N5) -> 0 | O11: 0 | P11: 0 | Q11: 0 | R11: 0 | S11: 0 | T11: =SUM(T5:T9) -> 1 | U11: =SUM(U5:U5) -> 0 | V11: 6 | W11: =SUM(W5:W5) -> 0 | X11: =SUM(X5:X5) -> 0 | Y11: =SUM(Y5:Y5) -> 0 | Z11: =SUM(Z5:Z10) -> 0 | AA11: =SUM(AA5:AA10) -> 1 | AB11: =SUM(AB5:AB9) -> 33 | AC11: =SUM(Z11:AB11) -> 34
A13: MARINE ANIMALS
A14: DAMSELFISH
A15: Black Neon Damsel | B15: Neoglyphidodon oxyodon | G15: 3 | H15: 0 | I15: 0 | J15: 3 | M15: 23 | V15: 2 | Z15: =SUM(H15+K15+N15-Q15-T15-W15) -> 0 | AA15: =SUM(I15+L15+O15-R15-U15-X15) -> 0 | AB15: =SUM(J15+M15+P15-S15-V15-Y15) -> 24 | AC15: =SUM(Z15+AA15+AB15) -> 24
A16: Humbug Damsel | B16: Dascyllus melanurus | G16: 4 | H16: 0 | I16: 0 | J16: 4 | Z16: 0 | AA16: 0 | AB16: 4 | AC16: 4
A17: Three Stripe Humbug | B17: Dascyllus anuanus | G17: 0 | H17: 0 | I17: 0 | J17: 0 | M17: 10 | V17: 1 | Z17: 0 | AA17: 0 | AB17: 9 | AC17: 9
A18: Domino Damsel | B18: Dascyllus trimaculatus | G18: 18 | H18: 0 | I18: 0 | J18: 18 | M18: 30 | V18: 1 | Z18: 0 | AA18: 0 | AB18: 47 | AC18: 47
A19: Yellowtail blue damselfish | B19: Chrysiptera parasema | G19: 16 | H19: 0 | I19: 0 | J19: 16 | M19: 10 | Z19: 0 | AA19: 0 | AB19: 26 | AC19: 26
A20: Lemon Damsel | B20: Amblyglyphidodon aureus | G20: 7 | H20: 0 | I20: 0 | J20: 7 | M20: 47 | V20: 4 | Z20: 0 | AA20: 0 | AB20: 50 | AC20: 50
A21: Sergeant Major | B21: Adudefduf saxatilis | G21: 8 | H21: 0 | I21: 0 | J21: 8 | Z21: 0 | AA21: 0 | AB21: 8 | AC21: 8
A22: Tri coloured Damsel | B22: Chrysiptera rollandi | G22: 4 | H22: 0 | I22: 0 | J22: 4 | M22: 15 | Z22: 0 | AA22: 0 | AB22: 19 | AC22: 19
A23: Black n Gold Damsel | B23: Neoglyphidodon nigroris | G23: 10 | H23: 0 | I23: 0 | J23: 10 | V23: 1 | Z23: 0 | AA23: 0 | AB23: 9 | AC23: 9
A24: Blue Fin Damsel | B24: Chrysiptera flavipinnis | G24: 6 | H24: 0 | I24: 0 | J24: 6 | V24: 1 | Z24: 0 | AA24: 0 | AB24: 5 | AC24: 5
A25: Blue Neon Damsel | B25: Pomacentrus alleni | G25: 18 | H25: 0 | I25: 0 | J25: 18 | Z25: 0 | AA25: 0 | AB25: 18 | AC25: 18
A26: Green Chromis | B26: Chromis viridis | G26: 33 | H26: 0 | I26: 0 | J26: 33 | M26: 36 | V26: 2 | Z26: 0 | AA26: 0 | AB26: 67 | AC26: 67
A27: Black Bar Chromis | B27: Chromis retrofasciata | G27: 1 | H27: 0 | I27: 0 | J27: 1 | Z27: 0 | AA27: 0 | AB27: 1 | AC27: 1
A28: Bicolour Chromis | B28: Chromis bicolor | G28: 0 | H28: 0 | I28: 0 | J28: 0 | M28: 20 | V28: 2 | Z28: 0 | AA28: 0 | AB28: 18 | AC28: 18
A29: Regal Damsel | B29: Chrysiptera hemicyanea | G29: 8 | H29: 0 | I29: 0 | J29: 8 | M29: 30 | Z29: 0 | AA29: 0 | AB29: 38 | AC29: 38
A30: Emperor Damsel | B30: Chrysiptera parasema | G30: 20 | H30: 0 | I30: 0 | J30: 20 | Z30: 0 | AA30: 0 | AB30: 20 | AC30: 20
A31: Fijian Blue Gold Damsels | B31: Chrysiptera taupou | G31: 10 | H31: 0 | I31: 0 | J31: 10 | M31: 12 | V31: 2 | Z31: 0 | AA31: 0 | AB31: 20 | AC31: 20
A32: Common Clownfish | B32: Amphiprion occelaris | G32: 12 | H32: 0 | I32: 0 | J32: 12 | M32: 18 | V32: 7 | Z32: 0 | AA32: 0 | AB32: 23 | AC32: 23
A33: Sunface Damsel | B33: Chrysiptera talboti | G33: 0 | H33: 0 | I33: 0 | J33: 0 | M33: 10 | Z33: 0 | AA33: 0 | AB33: 10 | AC33: 10
A34: Maroon Clownfish | B34: Premnas biaculeatus | G34: 1 | H34: 0 | I34: 0 | J34: 1 | V34: 1 | Z34: 0 | AA34: 0 | AB34: 0 | AC34: 0
A35: Clarki Clownfish | B35: Amphiprion clarkii | G35: 6 | H35: 0 | I35: 0 | J35: 6 | Z35: 0 | AA35: 0 | AB35: 6 | AC35: 6
A36: SHARKS
A37: Blacktip Reef Shark | B37: Carcharhinus melanopterus | G37: 2 | H37: 1 | I37: 1 | J37: 0 | T37: 1 | Z37: 0 | AA37: 1 | AB37: 0 | AC37: 1
A38: Brown Banded Bamboo Shark | B38: Chiloscyllium punctatum | G38: 1 | H38: 1 | I38: 0 | J38: 0 | Z38: 1 | AA38: 0 | AB38: 0 | AC38: 1
A39: Angel Shark | B39: Squatina squatina | G39: 1 | H39: 1 | I39: 0 | J39: 0 | Z39: 1 | AA39: 0 | AB39: 0 | AC39: 1
A40: Bull Huss | B40: Scyliorhinus stellaris | G40: 7 | H40: 1 | I40: 1 | J40: 5 | K40: 1 | Z40: 2 | AA40: 1 | AB40: 5 | AC40: 8
A41: Lesser Spotted Dogfish | B41: Scyliorhinus canicula | G41: 5 | H41: 0 | I41: 0 | J41: 5 | P41: 1 | V41: 2 | Z41: 0 | AA41: 0 | AB41: 4 | AC41: 4
A42: Starry Smoothhound | B42: Mustelus asterias | G42: 3 | H42: 2 | I42: 1 | J42: 0 | U42: 1 | Z42: 2 | AA42: 0 | AB42: 0 | AC42: 2
A43: RAYS
A44: Common Stingray | B44: Dasyatis pastinaca | G44: 2 | H44: 0 | I44: 2 | J44: 0 | L44: 1 | Z44: 0 | AA44: 3 | AB44: 0 | AC44: 3
A45: Southern Stingray | B45: Dasyatis americana | G45: 3 | H45: 3 | I45: 0 | J45: 0 | T45: 3 | Z45: 0 | AA45: 0 | AB45: 0 | AC45: 0
A46: Blonde Ray | B46: Raja brachyura | G46: 1 | H46: 0 | I46: 1 | J46: 0 | Z46: 0 | AA46: 1 | AB46: 0 | AC46: 1
A47: Painted Ray | B47: Raja microocellata | G47: 2 | H47: 1 | I47: 1 | J47: 0 | T47: 1 | Z47: 0 | AA47: 1 | AB47: 0 | AC47: 1
A48: Thornback Ray | B48: Raja clavata | G48: 7 | H48: 4 | I48: 3 | J48: 0 | M48: 4 | T48: 1 | U48: 1 | V48: 2 | Z48: 3 | AA48: 2 | AB48: 2 | AC48: 7
A49: TRIGGERFISH | Z49: 0 | AA49: 0 | AB49: 0 | AC49: 0
A50: Black Durgeon | B50: Melichthys niger | G50: 2 | H50: 0 | I50: 0 | J50: 2 | M50: 2 | Z50: 0 | AA50: 0 | AB50: 4 | AC50: 4
A51: Grey Triggerfish | B51: Balistes capriscus | G51: 2 | H51: 0 | I51: 0 | J51: 2 | Z51: 0 | AA51: 0 | AB51: 2 | AC51: 2
A52: Picasso triggerfish | B52: Rhinecanthus aculeatus | G52: 2 | H52: 0 | I52: 0 | J52: 2 | Z52: 0 | AA52: 0 | AB52: 2 | AC52: 2
A53: Wedgetail Picasso | B53: Rhinecanthus rectangulus | G53: 1 | H53: 0 | I53: 0 | J53: 1 | Z53: 0 | AA53: 0 | AB53: 1 | AC53: 1
A54: Queen Triggerfish | B54: Balistes vetula | G54: 0 | H54: 0 | I54: 0 | J54: 0 | M54: 1 | Z54: 0 | AA54: 0 | AB54: 1 | AC54: 1
A55: Blue Jigsaw Trigger | B55: Pseudobalistes fuscus | G55: 0 | H55: 0 | I55: 0 | J55: 0 | M55: 1 | Z55: 0 | AA55: 0 | AB55: 1 | AC55: 1
A56: Clown Trigger | B56: Balistoides conspicillum | G56: 0 | H56: 0 | I56: 0 | J56: 0 | M56: 2 | Z56: 0 | AA56: 0 | AB56: 2 | AC56: 2
A57: WRASSE
A58: Gold sinny | B58: Ctenolabrus rupestris | G58: 4 | H58: 0 | I58: 0 | J58: 4 | V58: 1 | Z58: 0 | AA58: 0 | AB58: 3 | AC58: 3
A59: Cleaner Wrasse | B59: Labroides dimidiatus | G59: 7 | H59: 0 | I59: 0 | J59: 7 | M59: 3 | Z59: 0 | AA59: 0 | AB59: 10 | AC59: 10
A60: Ballan Wrasse | B60: Labrus bergylta | G60: 3 | H60: 1 | I60: 2 | J60: 0 | U60: 1 | Z60: 1 | AA60: 1 | AB60: 0 | AC60: 2
A61: Cuckoo Wrasse | B61: Labrus bimaculatus | G61: 2 | H61: 0 | I61: 2 | J61: 0 | Z61: 0 | AA61: 2 | AB61: 0 | AC61: 2
A62: Spanish Hogfish | B62: Bodianus rufus | G62: 1 | H62: 0 | I62: 0 | J62: 1 | M62: 1 | Z62: 0 | AA62: 0 | AB62: 2 | AC62: 2
A63: Silver Bellied Wrasse | B63: Halichoeres trispilus | G63: 5 | H63: 0 | I63: 0 | J63: 5 | Z63: 0 | AA63: 0 | AB63: 5 | AC63: 5
A64: Paddlefin Wrasse | B64: Thalassoma lucasanum | G64: 1 | H64: 0 | I64: 0 | J64: 1 | Z64: 0 | AA64: 0 | AB64: 1 | AC64: 1
A65: Clown Coris Wrasse | B65: Coris aygula | G65: 1 | H65: 0 | I65: 0 | J65: 1 | Z65: 0 | AA65: 0 | AB65: 1 | AC65: 1
A66: Pinstripe Wrasse | B66: Halichoeres melanurus | G66: 0 | H66: 0 | I66: 0 | J66: 0 | M66: 1 | Z66: 0 | AA66: 0 | AB66: 1 | AC66: 1
A67: Pyjama Wrasse | B67: Pseudocheilinus hexataenia | G67: 1 | H67: 0 | I67: 0 | J67: 1 | M67: 2 | V67: 1 | Z67: 0 | AA67: 0 | AB67: 2 | AC67: 2
A68: Twistii Wrasse | B68: Anampses twistii | G68: 0 | H68: 0 | I68: 0 | J68: 0 | M68: 1 | Z68: 0 | AA68: 0 | AB68: 1 | AC68: 1
A69: Dragon Wrasse | B69: Novaculichthys taeniourus | G69: 0 | H69: 0 | I69: 0 | J69: 0 | M69: 2 | V69: 1 | Z69: 0 | AA69: 0 | AB69: 1 | AC69: 1
A70: ANGELFISH
A71: Bicolour Angelfish | B71: Centropyge bicolor | G71: 5 | H71: 0 | I71: 0 | J71: 5 | M71: 1 | Z71: 0 | AA71: 0 | AB71: 6 | AC71: 6
A72: Lamark's Angel | B72: Genicanthus lamarcki | G72: 1 | H72: 0 | I72: 0 | J72: 1 | V72: 1 | Z72: 0 | AA72: 0 | AB72: 0 | AC72: 0
A73: Coral Beauty | B73: Centropyge bispinosus | G73: 0 | H73: 0 | I73: 0 | J73: 0 | M73: 1 | V73: 1 | Z73: 0 | AA73: 0 | AB73: 0 | AC73: 0
A74: Eibl's angel | B74: Centropyge eibl | G74: 1 | H74: 0 | I74: 0 | J74: 1 | M74: 1 | Z74: 0 | AA74: 0 | AB74: 2 | AC74: 2
A75: Rusty Angel | B75: Centropyge ferrugata | G75: 0 | H75: 0 | I75: 0 | J75: 0 | M75: 1 | Z75: 0 | AA75: 0 | AB75: 1 | AC75: 1
A76: Koran Angel | B76: Pomacanthus semicirculatu | G76: 1 | H76: 0 | I76: 0 | J76: 1 | Z76: 0 | AA76: 0 | AB76: 1 | AC76: 1
A77: Singapore Angel | B77: Chaetodontoplus mesoleucus | G77: 1 | H77: 0 | I77: 0 | J77: 1 | Z77: 0 | AA77: 0 | AB77: 1 | AC77: 1
A78: Cream Angel | B78: Apolemicthys xanthurus | G78: 4 | H78: 0 | I78: 0 | J78: 4 | Z78: 0 | AA78: 0 | AB78: 4 | AC78: 4
A79: Fireball Angel | B79: Centropyge acanthops | G79: 0 | H79: 0 | I79: 0 | J79: 0 | M79: 2 | V79: 1 | Z79: =SUM(H79+K79+N79-Q79-T79-W79) -> 0 | AA79: =SUM(I79+L79+O79-R79-U79-X79) -> 0 | AB79: =SUM(J79+M79+P79-S79-V79-Y79) -> 1 | AC79: =SUM(Z79+AA79+AB79) -> 1
A80: Flame Angel | B80: Centropyge loriculus | G80: 0 | H80: 0 | I80: 0 | J80: 0 | M80: 1 | Z80: 0 | AA80: 0
A81: Lemon Peel | B81: Centropyge flavissima | G81: 2 | H81: 0 | I81: 0 | J81: 2 | M81: 1 | Z81: 0 | AA81: 0 | AB81: 3 | AC81: 3
A82: Keyhole Angel | B82: Centropyge tibicen | G82: 1 | H82: 0 | I82: 0 | J82: 1 | Z82: 0 | AA82: 0 | AB82: 1 | AC82: 1
A83: PUFFERFISH/BOXFISH/COWFISH
A84: Dog-faced Puffer | B84: Arothron nigropunctatus | G84: 1 | H84: 0 | I84: 0 | J84: 1 | M84: 1 | Z84: 0 | AA84: 0 | AB84: 2 | AC84: 2
A85: Hovercraft Cowfish | B85: Tetrosomus gibbosus | G85: 1 | H85: 0 | I85: 0 | J85: 1 | M85: 1 | Z85: 0 | AA85: 0 | AB85: 2 | AC85: 2
A86: Long Horned Cowfish | B86: Lactoria cornuta | G86: 1 | H86: 0 | I86: 0 | J86: 1 | Z86: 0 | AA86: 0 | AB86: 1 | AC86: 1
A87: Yellow Boxfish | B87: Ostracion cubicus | G87: 1 | H87: 0 | I87: 0 | J87: 1 | Z87: 0 | AA87: 0 | AB87: 1 | AC87: 1
A88: Porcupine pufferfish | B88: Diodon holocanthus | G88: 3 | H88: 0 | I88: 0 | J88: 3 | M88: 2 | V88: 2 | Z88: 0 | AA88: 0 | AB88: 3 | AC88: 3
A89: Stars and Stripe Pufferfish | B89: Arothron hispidus | G89: 0 | H89: 0 | I89: 0 | J89: 0 | M89: 1 | Z89: 0 | AA89: 0 | AB89: 1 | AC89: 1
A90: Black Spotted Puffer | B90: Arothron nigropunctatus | G90: 2 | H90: 0 | I90: 0 | J90: 2 | V90: 1 | Z90: 0 | AA90: 0 | AB90: 1 | AC90: 1
A91: Jewel Puffer | B91: Canthigaster solandri | G91: 2 | H91: 0 | I91: 0 | J91: 2 | Z91: 0 | AA91: 0 | AB91: 2 | AC91: 2
A92: SURGEONFISH
A93: Lopez Tang | B93: Naso lopezi | G93: 2 | H93: 0 | I93: 0 | J93: 2 | Z93: 0 | AA93: 0 | AB93: 2 | AC93: 2
A94: Pacific Sailfin tang | B94: Zebrasoma veliferum | G94: 7 | H94: 0 | I94: 0 | J94: 7 | V94: 1 | Z94: 0 | AA94: 0 | AB94: 6 | AC94: 6
A95: Indian Ocean Sailfin tang | B95: Zebrasoma desjardini | G95: 5 | H95: 0 | I95: 0 | J95: 5 | V95: 2 | Z95: 0 | AA95: 0 | AB95: 3 | AC95: 3
A96: Yellow tang | B96: Zebrasoma flavescens | G96: 10 | H96: 0 | I96: 0 | J96: 10 | M96: 6 | V96: 2 | Z96: 0 | AA96: 0 | AB96: 14 | AC96: 14
A97: Yellow Fin Tang | B97: Acanthurus xanthopterus | G97: 1 | H97: 0 | I97: 0 | J97: 1 | Z97: 0 | AA97: 0 | AB97: 1 | AC97: 1
A98: Powder Blue Tang | B98: Acanthurus leucosternon | G98: 5 | H98: 0 | I98: 0 | J98: 5 | M98: 1 | V98: 3 | Z98: 0 | AA98: 0 | AB98: 3 | AC98: 3
A99: Orange Shoulder Tang | B99: Acanthurus olivaceus | G99: 4 | H99: 0 | I99: 0 | J99: 4 | Z99: 0 | AA99: 0 | AB99: 4 | AC99: 4
A100: Regal Tang | B100: Paracanthurus hepatus | G100: 3 | H100: 0 | I100: 0 | J100: 3 | M100: 16 | V100: 9 | Z100: 0 | AA100: 0 | AB100: 10 | AC100: 10
A101: Big Nosed Unicornfish | B101: Naso vlamingi | G101: 1 | H101: 0 | I101: 0 | J101: 1 | V101: 1 | Z101: 0 | AA101: 0 | AB101: 0 | AC101: 0
A102: Yellow Eyed Tang | B102: Ctenochaetus strigosus | G102: 3 | H102: 0 | I102: 0 | J102: 3 | V102: 1 | Z102: 0 | AA102: 0 | AB102: 2 | AC102: 2
A103: Lipstick Tang | B103: Naso lituratus | G103: 4 | H103: 0 | I103: 0 | J103: 4 | Z103: 0 | AA103: 0 | AB103: 4 | AC103: 4
A104: Clown Tang | B104: Acanthurus lineatus | G104: 2 | H104: 0 | I104: 0 | J104: 2 | M104: 2 | Z104: 0 | AA104: 0 | AB104: 4 | AC104: 4
A105: Vampire Tang | B105: Acanthus tennenti | G105: 2 | H105: 0 | I105: 0 | J105: 2 | Z105: 0 | AA105: 0 | AB105: 2 | AC105: 2
A106: Yellow Tail Purple Tang | B106: Zebrasoma xanthurum | G106: 5 | H106: 0 | I106: 0 | J106: 5 | Z106: 0 | AA106: 0 | AB106: 5 | AC106: 5
A107: GROUPERS/VENEMOUS FISH
A108: Foxface Rabbitfish | B108: Siganus vulpinus | G108: 0 | H108: 0 | I108: 0 | J108: 0 | M108: 4 | Z108: 0 | AA108: 0 | AB108: 4 | AC108: 4
A109: Red Foxface | B109: Siganus magnificus | G109: 2 | H109: 0 | I109: 0 | J109: 2 | V109: 1 | Z109: 0 | AA109: 0 | AB109: 1 | AC109: 1
A110: Red Lionfish | B110: Pterois volitans | G110: 2 | H110: 0 | I110: 0 | J110: 2 | M110: 4 | V110: 1 | Z110: 0 | AA110: 0 | AB110: 5 | AC110: 5
A111: Fuzzy Dwarf Lionfish | B111: Dendrochirus brachypterus | G111: 0 | H111: 0 | I111: 0 | J111: 0 | M111: 4 | V111: 1 | Z111: 0 | AA111: 0 | AB111: 3 | AC111: 3
A112: Orange Spot Rabbitfish | B112: Siganus gutattus | G112: 1 | H112: 0 | I112: 0 | J112: 1 | M112: 1 | Z112: 0 | AA112: 0 | AB112: 2 | AC112: 2
A113: Reef Stonefish | B113: Synanceia verrucosa | G113: 1 | H113: 0 | I113: 0 | J113: 1 | Z113: 0 | AA113: 0 | AB113: 1 | AC113: 1
A114: Longnose Hawkfish | B114: Oxycirrhites Typus | G114: 0 | H114: 0 | I114: 0 | J114: 0 | M114: 2 | Z114: 0 | AA114: 0 | AB114: 2 | AC114: 2
A115: EELS | Z115: 0 | AA115: 0 | AB115: 0 | AC115: 0
A116: Snowflake Moray | B116: Echidna nebulosa | G116: 4 | H116: 0 | I116: 0 | J116: 4 | V116: 1 | Z116: 0 | AA116: 0 | AB116: 3 | AC116: 3
A117: Zebra moray | B117: Gymnomuraena zebra | G117: 3 | H117: 0 | I117: 0 | J117: 3 | Z117: 0 | AA117: 0 | AB117: 3 | AC117: 3
A118: Tesselate Mooray | B118: Gymnothorax favagineus | G118: 0 | H118: 0 | I118: 0 | J118: 0 | M118: 1 | Z118: 0 | AA118: 0 | AB118: 1 | AC118: 1
A119: BREAM
A120: Gilt Head Bream | B120: Sparus aurata | G120: 4 | H120: 0 | I120: 0 | J120: 4 | Z120: 0 | AA120: 0 | AB120: 4 | AC120: 4
A121: Black Sea Bream | B121: Spondyliosoma cantharus | G121: 12 | H121: 0 | I121: 0 | J121: 12 | Z121: 0 | AA121: 0 | AB121: 12 | AC121: 12
A122: GOATFISH
A123: Yellow Goatfish | B123: Parupeneus cyclostomus | G123: 0 | H123: 0 | I123: 0 | J123: 0 | M123: 3 | V123: 2 | Z123: 0 | AA123: 0 | AB123: 1 | AC123: 1
A124: Bicolour Goatfish | B124: Parupeneus barberinoides | G124: 3 | H124: 0 | I124: 0 | J124: 3 | Z124: 0 | AA124: 0 | AB124: 3 | AC124: 3
A125: BUTTERFLYFISH
A126: Teardrop Butterfly fish | B126: Chaetodon unimaculatus | G126: 4 | H126: 0 | I126: 0 | J126: 4 | Z126: 0 | AA126: 0 | AB126: 4 | AC126: 4
A127: Pearlscale Butterflyfish | B127: Chaetodon mertensii | G127: 2 | H127: 0 | I127: 0 | J127: 2 | Z127: 0 | AA127: 0 | AB127: 2 | AC127: 2
A128: Threadfin Butterflyfish | B128: Chaetodon auriga | G128: 2 | H128: 0 | I128: 0 | J128: 2 | M128: 2 | Z128: 0 | AA128: 0 | AB128: 4 | AC128: 4
A129: Racoon butterflyfish | B129: Chaetodon lunula | G129: 1 | H129: 0 | I129: 0 | J129: 1 | M129: 1 | V129: 1 | Z129: 0 | AA129: 0 | AB129: 1 | AC129: 1
A130: Pakistani Butterfly | B130: Chaetodon collare | G130: 0 | H130: 0 | I130: 0 | J130: 0 | M130: 3 | V130: 1 | Z130: 0 | AA130: 0 | AB130: 2 | AC130: 2
A131: Copperbanded Butterflyfish | B131: Chelmon rostrus | G131: 3 | H131: 0 | I131: 0 | J131: 3 | M131: 1 | Z131: 0 | AA131: 0 | AB131: 4 | AC131: 4
A132: Saddled Butterfly | B132: Chaetodon ulietensis | G132: 4 | H132: 0 | I132: 0 | J132: 4 | M132: 2 | V132: 2 | Z132: 0 | AA132: 0 | AB132: 4 | AC132: 4
A133: Crotchet butterflyfish | B133: Chaetodon guentheri | G133: 0 | H133: 0 | I133: 0 | J133: 0 | M133: 3 | Z133: 0 | AA133: 0 | AB133: 3 | AC133: 3
A134: Whimplefish | B134: Heniochus acuminatus | G134: 3 | H134: 0 | I134: 0 | J134: 3 | M134: 4 | V134: 2 | Z134: 0 | AA134: 0 | AB134: 5 | AC134: 5
A135: SYGNATHIDS
A136: Big Bellied Seahorse | B136: Hippocampus abdominalis | G136: 14 | H136: 0 | I136: 0 | J136: 14 | V136: 3 | Z136: 0 | AA136: 0 | AB136: 11 | AC136: 11
A137: Yellow Seahorse | B137: Hippocampus kuda | G137: 0 | H137: 0 | I137: 0 | J137: 0 | M137: 4 | V137: 1 | Z137: 0 | AA137: 0 | AB137: 3 | AC137: 3
A138: Banded Pipefish | B138: Doryrhamphus dactyliophorus | G138: 0 | H138: 0 | I138: 0 | J138: 0 | M138: 5 | V138: 5 | Z138: 0 | AA138: 0 | AB138: 0 | AC138: 0
A139: GOBY/BLENNY/DRAGONETTE
A140: Blue Cheek Goby | B140: Valenciennea strigata | G140: 5 | H140: 0 | I140: 0 | J140: 5 | V140: 1 | Z140: 0 | AA140: 0 | AB140: 4 | AC140: 4
A141: Chalk Goby | B141: Valenciennea sexguttata | G141: 0 | H141: 0 | I141: 0 | J141: 0 | M141: 2 | Z141: 0 | AA141: 0 | AB141: 2 | AC141: 2
A142: Court Jester Goby | B142: Amblygobius hectori | G142: 0 | H142: 0 | I142: 0 | J142: 0 | M142: 4 | Z142: =SUM(H142+K142+N142-Q142-T142-W142) -> 0 | AA142: =SUM(I142+L142+O142-R142-U142-X142) -> 0 | AB142: =SUM(J142+M142+P142-S142-V142-Y142) -> 4 | AC142: =SUM(Z142+AA142+AB142) -> 4
A143: Hi Fin Spangle Goby | B143: Ctenogobiops tangaroai | G143: 0 | H143: 0 | I143: 0 | J143: 0 | M143: 4 | Z143: 0 | AA143: 0 | AB143: 4 | AC143: 4
A144: Eye Spot Goby | B144: Signigobius biocellatus | G144: 0 | H144: 0 | I144: 0 | J144: 0 | M144: 1 | Z144: 0 | AA144: 0 | AB144: 1 | AC144: 1
A145: Scooter Blennie | B145: Synchiropus stellatus | G145: 0 | H145: 0 | I145: 0 | J145: 0 | M145: 6 | V145: 2 | Z145: 0 | AA145: 0 | AB145: 4 | AC145: 4
A146: Striped Blennie | B146: Meiacanthus grammistes | G146: 0 | H146: 0 | I146: 0 | J146: 0 | M146: 4 | Z146: 0 | AA146: 0 | AB146: 4 | AC146: 4
A147: Five Bearded Rockling | B147: Ciliata mustela | G147: 2 | H147: 0 | I147: 0 | J147: 2 | Z147: 0 | AA147: 0 | AB147: 2 | AC147: 2
A148: Shanny | B148: Lipophrys pholis | G148: 14 | H148: 0 | I148: 0 | J148: 14 | M148: 4 | V148: 2 | Z148: 0 | AA148: 0 | AB148: 16 | AC148: 16
A149: Tompot Blenny | B149: Parablennius gattorugine | G149: 3 | H149: 0 | I149: 0 | J149: 3 | V149: 1 | Z149: 0 | AA149: 0 | AB149: 2 | AC149: 2
A150: Black Goby | B150: Gobius niger | G150: 1 | H150: 0 | I150: 0 | J150: 1 | Z150: 0 | AA150: 0 | AB150: 1 | AC150: 1
A151: Common Goby | B151: Pomatoschistus microps | G151: 5 | H151: 0 | I151: 0 | J151: 5 | M151: 4 | Z151: 0 | AA151: 0 | AB151: 9 | AC151: 9
A152: Two Spot Goby | B152: Gobiusculus flavescens | G152: 2 | H152: 0 | I152: 0 | J152: 2 | Z152: 0 | AA152: 0 | AB152: 2 | AC152: 2
A153: Eel Blennie | B153: Congrogadus subducens | G153: 0 | H153: 0 | I153: 0 | J153: 0 | M153: 1 | Z153: 0 | AA153: 0 | AB153: 1 | AC153: 1
A154: FLATFISH
A155: Solenette | B155: Buglossidium luteum | G155: 1 | H155: 0 | I155: 0 | J155: 1 | Z155: 0 | AA155: 0 | AB155: 1 | AC155: 1
A156: Plaice | B156: Pleuronectes platessa | G156: 3 | H156: 0 | I156: 0 | J156: 3 | Z156: 0 | AA156: 0 | AB156: 3 | AC156: 3
A157: Topknot | B157: Zeugopterus punctatus | G157: 0 | H157: 0 | I157: 0 | J157: 0 | M157: 2 | Z157: 0 | AA157: 0 | AB157: 2 | AC157: 2
A158: Turbot | B158: Scophtalmus maximus | G158: 3 | H158: 0 | I158: 0 | J158: 3 | Z158: 0 | AA158: 0 | AB158: 3 | AC158: 3
A159: MISC TROPICAL MARINE FISH
A160: Banggai Cardinalfish | B160: Pterapogon kauderni | G160: 12 | H160: 0 | I160: 0 | J160: 12 | M160: 10 | V160: 1 | Z160: 0 | AA160: 0 | AB160: 21 | AC160: 21
A161: Ghost Cardinalfish | B161: Apogon leptacanthus | G161: 4 | H161: 0 | I161: 0 | J161: 4 | Z161: 0 | AA161: 0 | AB161: 4 | AC161: 4
A162: Spotted Cardinal | B162: Sphaeramia nematoptera | G162: 8 | H162: 0 | I162: 0 | J162: 8 | M162: 10 | Z162: 0 | AA162: 0 | AB162: 18 | AC162: 18
A163: Gold Line Cardinal | B163: Apogon cyanosoma | G163: 0 | H163: 0 | I163: 0 | J163: 0 | M163: 10 | Z163: 0 | AA163: 0 | AB163: 10 | AC163: 10
A164: Wreckfish | B164: Pseudanthias squamipinnis | G164: 6 | H164: 0 | I164: 0 | J164: 6 | M164: 24 | Z164: 0 | AA164: 0 | AB164: 30 | AC164: 30
A165: Bleeding heart anthias | B165: Pseudanthias cooperi | G165: 2 | H165: 0 | I165: 0 | J165: 2 | Z165: 0 | AA165: 0 | AB165: 2 | AC165: 2
A166: Batfish | B166: Platax pinnatus | G166: 7 | H166: 0 | I166: 0 | J166: 7 | Z166: 0 | AA166: 0 | AB166: 7 | AC166: 7
A167: Oriental sweetlips | B167: Plectorhinchus vittatus | G167: 1 | H167: 0 | I167: 0 | J167: 1 | Z167: 0 | AA167: 0 | AB167: 1 | AC167: 1
A168: Slate Sweetlip | B168: Diagramma labiosum | G168: 1 | H168: 0 | I168: 0 | J168: 1 | V168: 1 | Z168: 0 | AA168: 0 | AB168: 0 | AC168: 0
A169: Silver Mono | B169: Monodactylus argenteus | G169: 22 | H169: 0 | I169: 0 | J169: 22 | V169: 2 | Z169: 0 | AA169: 0 | AB169: 20 | AC169: 20
A170: Scarlet hawkfish | B170: Neocirrhitus armatus | G170: 1 | H170: 0 | I170: 0 | J170: 1 | Z170: 0 | AA170: 0 | AB170: 1 | AC170: 1
A171: Lookdown | B171: Selene vomer | G171: 2 | H171: 0 | I171: 0 | J171: 2 | V171: 2 | Z171: 0 | AA171: 0 | AB171: 0 | AC171: 0
A172: Golden Trevally | B172: Gnathanodon speciosus | G172: 0 | H172: 0 | I172: 0 | J172: 0 | M172: 10 | V172: 1 | Z172: 0 | AA172: 0 | AB172: 9 | AC172: 9
A173: Firefish | B173: Nemateleotris magnifica | G173: 2 | H173: 0 | I173: 0 | J173: 2 | V173: 1 | Z173: 0 | AA173: 0 | AB173: 1 | AC173: 1
A174: Miniatus Grouper | B174: Cephalopholis miniata | G174: 1 | H174: 0 | I174: 0 | J174: 1 | Z174: 0 | AA174: 0 | AB174: 1 | AC174: 1
A175: Panther Grouper | B175: Cromileptes altivelis | G175: 0 | H175: 0 | I175: 0 | J175: 0 | M175: 2 | Z175: 0 | AA175: 0 | AB175: 2 | AC175: 2
A176: Clown Grouper | B176: Pogonoperca Punctata | G176: 1 | H176: 0 | I176: 0 | J176: 1 | Z176: 0 | AA176: 0 | AB176: 1 | AC176: 1
A177: White Spot Grouper | B177: Epinephelus drummondhayi | G177: 1 | H177: 0 | I177: 0 | J177: 1 | Z177: 0 | AA177: 0 | AB177: 1 | AC177: 1
A178: Marine Comet | B178: Calloplesiops altivelis | G178: 1 | H178: 0 | I178: 0 | J178: 1 | Z178: 0 | AA178: 0 | AB178: 1 | AC178: 1
A179: Royal Gramma | B179: Gramma loreto | G179: 2 | H179: 0 | I179: 0 | J179: 2 | M179: 3 | V179: 4 | Z179: 0 | AA179: 0 | AB179: 1 | AC179: 1
A180: Tassel Filefish | B180: Chaetodermis penicilligerus | G180: 0 | H180: 0 | I180: 0 | J180: 0 | M180: 1 | Z180: 0 | AA180: 0 | AB180: 1 | AC180: 1
A181: Mandarin | B181: Ptorosynchiropus splendidus | G181: 1 | H181: 0 | I181: 0 | J181: 1 | Z181: 0 | AA181: 0 | AB181: 1 | AC181: 1
A182: Spotted Mandarin | B182: Pterosynchiropus picturatus | G182: 0 | H182: 0 | I182: 0 | J182: 0 | M182: 2 | V182: 1 | Z182: 0 | AA182: 0 | AB182: 1 | AC182: 1
A183: Matted Leather Jacket | B183: Monacanthus chinensis | G183: 4 | H183: 0 | I183: 0 | J183: 4 | M183: 4 | V183: 1 | Z183: 0 | AA183: 0 | AB183: 7 | AC183: 7
A185: CEPHALOPODS
A186: Giant Pacific Octopus | B186: Enteroctopus dofleini | G186: 1 | H186: 1 | I186: 0 | J186: 0 | Z186: 1 | AA186: 0 | AB186: 0 | AC186: 1
A188: GASTROPODS
A189: Turbo Snails | B189: ‎Turbo fluctuosa | G189: 21 | H189: 0 | I189: 0 | J189: 21 | Z189: 0 | AA189: 0 | AB189: 21 | AC189: 21
A190: ANTHOZA
A191: Beadlet anemone | B191: Actinia equina | G191: 121 | H191: 0 | I191: 0 | J191: 121 | M191: 24 | Z191: 0 | AA191: 0 | AB191: 145 | AC191: 145
A192: Dahalia anemone | B192: Urticina felina | G192: 2 | H192: 0 | I192: 0 | J192: 2 | M192: 1 | Z192: 0 | AA192: 0 | AB192: 3 | AC192: 3
A193: bubble anemone | B193: Entacmaea quadricolor | G193: 8 | H193: 0 | I193: 0 | J193: 8 | V193: 6 | Z193: 0 | AA193: 0 | AB193: 2 | AC193: 2
A194: Jewel Anemone | B194: Corynactis viridis | G194: 240 | H194: 0 | I194: 0 | J194: 240 | Z194: 0 | AA194: 0 | AB194: 240 | AC194: 240
A195: Snakelocks anemone | B195: Anemonia sulcata | G195: 320 | H195: 0 | I195: 0 | J195: 320 | M195: 34 | Z195: 0 | AA195: 0 | AB195: 354 | AC195: 354
A196: Strawberry anemone | B196: Actinia fragacea | G196: 18 | H196: 0 | I196: 0 | J196: 18 | M196: 2 | Z196: 0 | AA196: 0 | AB196: 20 | AC196: 20
A197: Raspberry Coral | G197: 1 | H197: 0 | I197: 0 | J197: 1 | Y197: 1 | Z197: 0 | AA197: 0 | AB197: 0 | AC197: 0
A198: Plate corals | G198: 2 | H198: 0 | I198: 0 | J198: 2 | Y198: 2 | Z198: 0 | AA198: 0 | AB198: 0 | AC198: 0
A199: Pulsing Coral | G199: 2 | H199: 0 | I199: 0 | J199: 2 | Z199: 0 | AA199: 0 | AB199: 2 | AC199: 2
A200: Pineapple coral | G200: 1 | H200: 0 | I200: 0 | J200: 1 | Y200: 1 | Z200: 0 | AA200: 0 | AB200: 0 | AC200: 0
A201: spiny brain coral | G201: 1 | H201: 0 | I201: 0 | J201: 1 | Y201: 1 | Z201: 0 | AA201: 0 | AB201: 0 | AC201: 0
A202: Medusa coral | G202: 1 | H202: 0 | I202: 0 | J202: 1 | Y202: 1 | Z202: 0 | AA202: 0 | AB202: 0 | AC202: 0
A203: finger coral | G203: 1 | H203: 0 | I203: 0 | J203: 1 | Z203: 0 | AA203: 0 | AB203: 1 | AC203: 1
... 143 more rows

Sheet Sheet2

Sheet Sheet3
